bitfinex/quotes_BTCUSD_20250614
["timestamp","ask_amount","ask_price","bid_price","bid_amount"]
[1749943743343,0.20591224,105570.0,105560.0,1.21699274]
[1749943743567,0.20591224,105570.0,105560.0,1.21699283]
[1749943744017,0.19644013,105570.0,105560.0,1.21699283]
[1749943745151,0.19644013,105570.0,105560.0,0.76275883]
[1749943745632,0.19644013,105570.0,105560.0,0.77223202]
[1749943746271,0.18696775,105570.0,105560.0,0.77223202]
[1749943746490,0.18696775,105570.0,105560.0,0.56381985]
[1749943746699,0.63172865,105570.0,105560.0,0.57329313]
[1749943746909,0.64062057,105570.0,105560.0,0.57329313]
[1749943747536,0.63172865,105570.0,105560.0,0.57329313]
[1749943747747,0.64061556,105570.0,105560.0,0.57329313]
[1749943747981,0.64061558,105570.0,105560.0,0.57329313]
[1749943748195,0.64061558,105570.0,105560.0,0.56381985]
[1749943748411,0.19585468,105570.0,105560.0,0.57329313]
[1749943748619,0.18696775,105570.0,105560.0,0.57329313]
[1749943749291,0.66292865,105570.0,105560.0,0.29631312]
[1749943749509,0.66292865,105570.0,105560.0,0.44959312]
[1749943749510,0.70181568,105570.0,105560.0,0.44959312]
[1749943749724,0.69292865,105570.0,105560.0,0.44959312]
[1749943749932,0.70181621,105570.0,105560.0,0.44959312]
[1749943750584,0.70181622,105570.0,105560.0,0.44959312]
[1749943750795,0.67181622,105570.0,105560.0,0.44959312]
[1749943751438,0.69312865,105570.0,105560.0,0.44959312]
[1749943751653,0.70201622,105570.0,105560.0,0.44959312]
[1749943751901,0.69312865,105570.0,105560.0,0.44959312]
[1749943752117,0.70201622,105570.0,105560.0,0.44959312]
[1749943752550,0.67181622,105570.0,105560.0,0.44959312]
[1749943752760,0.67181511,105570.0,105560.0,0.44959312]
[1749943752975,0.66292865,105570.0,105560.0,0.44959312]
[1749943753251,0.67181511,105570.0,105560.0,0.44959312]
[1749943753886,0.66292865,105570.0,105560.0,0.44959312]
[1749943754358,0.64061489,105570.0,105560.0,0.44959312]
[1749943754606,0.64061477,105570.0,105560.0,0.44959312]
[1749943754830,0.64061483,105570.0,105560.0,0.44959312]
[1749943755053,0.64061486,105570.0,105560.0,0.44959312]
[1749943755257,0.63172865,105570.0,105560.0,0.44959312]
[1749943755673,0.64061493,105570.0,105560.0,0.44959312]
[1749943755896,0.64061495,105570.0,105560.0,0.44959312]
[1749943756109,0.63172865,105570.0,105560.0,0.48069312]
[1749943756321,0.64061495,105570.0,105560.0,0.48069312]
[1749943756747,0.63172865,105570.0,105560.0,0.48069312]
[1749943757407,0.64061495,105570.0,105560.0,0.48069312]
[1749943757630,0.63172865,105570.0,105560.0,0.48069312]
[1749943758073,0.64061494,105570.0,105560.0,0.48069312]
[1749943759850,0.63172865,105570.0,105560.0,0.48069312]
[1749943760268,0.64061487,105570.0,105560.0,0.48069312]
[1749943760948,0.63172865,105570.0,105560.0,0.48069312]
[1749943761174,0.64061487,105570.0,105560.0,0.48069312]
[1749943761609,0.63172865,105570.0,105560.0,0.48069312]
[1749943761812,0.64061487,105570.0,105560.0,0.48069312]
[1749943762020,0.64061602,105570.0,105560.0,0.48069312]
[1749943762434,0.63172865,105570.0,105560.0,0.48069312]
[1749943762640,0.64061602,105570.0,105560.0,0.48069312]
[1749943762856,0.63172865,105570.0,105560.0,0.48069312]
[1749943763282,0.63953589,105570.0,105560.0,0.48073312]
[1749943763505,0.63064962,105570.0,105560.0,0.44963312]
[1749943764142,0.63064962,105570.0,105560.0,0.44715312]
[1749943764839,0.63953589,105570.0,105560.0,0.44715312]
[1749943765026,0.63064962,105570.0,105560.0,0.44715312]
[1749943765276,0.63953589,105570.0,105560.0,0.47875312]
[1749943766471,0.63953589,105570.0,105560.0,0.44715312]
[1749943767134,0.63064962,105570.0,105560.0,0.44715312]
[1749943767342,0.63953589,105570.0,105560.0,0.44715312]
[1749943767991,0.63064962,105570.0,105560.0,0.44715312]
[1749943768197,0.63953588,105570.0,105560.0,0.44715312]
[1749943768607,0.63953589,105570.0,105560.0,0.44715312]
[1749943769022,0.67013589,105570.0,105560.0,0.44715312]
[1749943769229,0.63064962,105570.0,105560.0,0.44715312]
[1749943769639,0.63064962,105570.0,105560.0,0.29383312]
[1749943769851,0.66124962,105570.0,105560.0,0.44715312]
[1749943770056,0.67013591,105570.0,105560.0,0.44715312]
[1749943770266,0.67013592,105570.0,105560.0,0.44715312]
[1749943770475,0.63953592,105570.0,105560.0,0.44715312]
[1749943770680,0.63953602,105570.0,105560.0,0.44715312]
[1749943770886,0.63064962,105570.0,105560.0,0.44715312]
[1749943771504,0.63953601,105570.0,105560.0,0.44715312]
[1749943771711,0.63064962,105570.0,105560.0,0.44715312]
[1749943771920,0.63953611,105570.0,105560.0,0.44715312]
[1749943772127,0.63064962,105570.0,105560.0,0.44715312]
[1749943772349,0.63064962,105570.0,105560.0,0.29383312]
[1749943772557,0.63064962,105570.0,105560.0,0.44719312]
[1749943772758,0.63953614,105570.0,105560.0,0.44719312]
[1749943774057,0.63064962,105570.0,105560.0,0.44719312]
[1749943774681,0.63953614,105570.0,105560.0,0.44719312]
[1749943775323,0.63064962,105570.0,105560.0,0.44719312]
[1749943775523,0.63953614,105570.0,105560.0,0.44719312]
[1749943775821,0.63064962,105570.0,105560.0,0.44719312]
[1749943775938,0.63953614,105570.0,105560.0,0.44719312]
[1749943776200,0.64842266,105570.0,105560.0,0.44719312]
[1749943777229,0.63953614,105570.0,105560.0,0.44719312]
[1749943777659,0.65509106,105570.0,105560.0,0.29383312]
[1749943777876,0.64842467,105570.0,105560.0,0.44719312]
[1749943778084,0.65509107,105570.0,105560.0,0.44719312]
[1749943778299,0.64842467,105570.0,105560.0,0.44719312]
[1749943778512,0.64620253,105570.0,105560.0,0.44719312]
[1749943778743,1.43897326,105570.0,105560.0,0.00252]
[1749943779026,2.21313832,105570.0,105560.0,0.00252]
[1749943779260,2.25718256,105570.0,105560.0,0.00252]
[1749943779483,2.31394241,105570.0,105560.0,0.00252]
[1749943779689,2.3050522,105570.0,105560.0,0.00252]
[1749943779894,2.31394234,105570.0,105560.0,0.00252]
[1749943780119,0.6003388,105560.0,105550.0,0.29131312]
[1749943780359,1.18532137,105560.0,105550.0,0.29131312]
[1749943780581,1.16976363,105560.0,105550.0,0.29131312]
[1749943780783,1.17865376,105560.0,105550.0,0.29131312]
[1749943780989,1.15689918,105560.0,105550.0,0.29131312]
[1749943781191,1.09327664,105560.0,105550.0,0.29131312]
[1749943781394,1.13058861,105560.0,105550.0,0.29131312]
[1749943781601,1.13058861,105560.0,105550.0,0.29231312]
[1749943781796,1.13058858,105560.0,105550.0,0.29231312]
[1749943782089,1.12392113,105560.0,105550.0,0.29231312]
[1749943782235,1.16088856,105560.0,105550.0,0.29231312]
[1749943782442,1.15422113,105560.0,105550.0,0.29231312]
[1749943782650,1.15199865,105560.0,105550.0,0.29231312]
[1749943782809,1.12392113,105560.0,105550.0,0.29231312]
[1749943783031,1.12887283,105560.0,105550.0,0.29231312]
[1749943783240,1.10045066,105560.0,105550.0,0.29231312]
[1749943783485,1.10711799,105560.0,105550.0,0.29231312]
[1749943783691,1.11378536,105560.0,105550.0,0.29231312]
[1749943784157,1.11378536,105560.0,105550.0,0.32521312]
[1749943784360,1.11378529,105560.0,105550.0,0.32521312]
[1749943784572,1.11378529,105560.0,105550.0,0.001]
[1749943784573,1.19471805,105560.0,105550.0,0.001]
[1749943785001,1.20360921,105560.0,105550.0,0.001]
[1749943785217,1.2036093,105560.0,105550.0,0.001]
[1749943785443,1.18805033,105560.0,105550.0,0.001]
[1749943785651,1.19694117,105560.0,105550.0,0.001]
[1749943785863,1.2036093,105560.0,105550.0,0.001]
[1749943786063,1.2036092,105560.0,105550.0,0.001]
[1749943786274,1.2056092,105560.0,105550.0,0.001]
[1749943786494,1.20560906,105560.0,105550.0,0.001]
[1749943786916,1.19671836,105560.0,105550.0,0.001]
[1749943787125,0.77125765,105550.0,105540.0,0.2914553]
[1749943787331,1.22490934,105550.0,105540.0,0.2914553]
[1749943787582,1.22268666,105550.0,105540.0,0.2914553]
[1749943787796,1.23157747,105550.0,105540.0,0.00014218]
[1749943788451,1.23157747,105550.0,105540.0,0.00114218]
[1749943788680,1.22268666,105550.0,105540.0,0.00114218]
[1749943788918,1.23824559,105550.0,105540.0,0.00114218]
[1749943789129,1.23157748,105550.0,105540.0,0.00114218]
[1749943789344,1.23824559,105550.0,105540.0,0.00114218]
[1749943789587,1.22268666,105550.0,105540.0,0.00114218]
[1749943789796,1.23824559,105550.0,105540.0,0.00114218]
[1749943790224,1.23157748,105550.0,105540.0,0.00114218]
[1749943790432,1.23824559,105550.0,105540.0,0.00114218]
[1749943791053,1.19038666,105550.0,105540.0,0.00114218]
[1749943792821,0.99038666,105550.0,105540.0,0.00114218]
[1749943793050,0.99038666,105550.0,105540.0,0.03264218]
[1749943793750,0.99038666,105550.0,105540.0,0.32754218]
[1749943796093,0.02561602,105550.0,105540.0,1.00237968]
[1749943796327,0.22457385,105550.0,105540.0,1.02132903]
[1749943797448,0.22457385,105550.0,105540.0,0.73960267]
[1749943797651,0.22457385,105550.0,105540.0,0.58604267]
[1749943797868,0.22457385,105550.0,105540.0,0.73960267]
[1749943800441,0.0350902,105550.0,105540.0,0.73960267]
[1749943800588,0.0350902,105550.0,105540.0,0.794446]
[1749943801686,0.0350902,105550.0,105540.0,0.74907712]
[1749943802213,0.02561503,105550.0,105540.0,1.14448964]
[1749943802458,0.00666811,105550.0,105540.0,1.2407314]
[1749943802697,0.01614157,105550.0,105540.0,1.2407314]
[1749943802940,0.00666811,105550.0,105540.0,1.2407314]
[1749943803187,0.01614148,105550.0,105540.0,1.2407314]
[1749943803415,0.01614148,105550.0,105540.0,1.33588062]
[1749943803882,0.02561494,105550.0,105540.0,1.34088062]
[1749943804144,0.02561494,105550.0,105540.0,1.2467314]
[1749943804346,0.03508858,105550.0,105540.0,1.2467314]
[1749943804558,0.02561494,105550.0,105540.0,1.2467314]
[1749943804990,0.04456267,105550.0,105540.0,1.2467314]
[1749943805428,0.03508867,105550.0,105540.0,1.2467314]
[1749943805651,0.21722613,105560.0,105550.0,0.32461133]
[1749943806800,0.21722613,105560.0,105550.0,0.52356916]
[1749943807018,0.21722613,105560.0,105550.0,0.52456916]
[1749943807678,0.21722613,105560.0,105550.0,0.62271838]
[1749943808329,0.20775294,105560.0,105550.0,0.43323473]
[1749943808550,0.20775294,105560.0,105550.0,0.42376055]
[1749943809850,0.20775294,105560.0,105550.0,0.32761133]
[1749943811173,0.20775294,105560.0,105550.0,0.48125133]
[1749943811382,0.20775294,105560.0,105550.0,0.48065133]
[1749943812436,0.20775294,105560.0,105550.0,0.44875133]
[1749943813273,0.20775294,105560.0,105550.0,0.48115133]
[1749943815012,0.20775294,105560.0,105550.0,0.44875133]
[1749943817254,0.20775294,105560.0,105550.0,0.73214668]
[1749943817461,0.20775294,105560.0,105550.0,0.77262077]
[1749943817670,0.20775294,105560.0,105550.0,0.79156868]
[1749943817880,0.20775294,105560.0,105550.0,0.77262077]
[1749943818291,0.20775294,105560.0,105550.0,0.78209477]
[1749943818504,0.20775294,105560.0,105550.0,0.41697133]
[1749943818688,0.20775294,105560.0,105550.0,0.4359196]
[1749943819559,0.20775294,105560.0,105550.0,0.62540325]
[1749943822030,0.20775294,105560.0,105550.0,0.63487725]
[1749943823425,0.20775294,105560.0,105550.0,0.68237247]
[1749943823822,0.20775294,105560.0,105550.0,0.69184638]
[1749943824013,0.20775294,105560.0,105550.0,0.72254638]
[1749943824665,0.05617838,105560.0,105550.0,0.73201939]
[1749943825244,0.0182867,105560.0,105550.0,0.76481939]
[1749943825454,0.03723209,105560.0,105550.0,0.76481939]
[1749943825708,0.02775926,105560.0,105550.0,0.76481939]
[1749943826080,0.037232,105560.0,105550.0,0.76481939]
[1749943827776,0.037232,105560.0,105550.0,0.71732417]
[1749943828207,0.04670492,105560.0,105550.0,0.71732417]
[1749943828605,0.037232,105560.0,105550.0,0.71732417]
[1749943828992,0.04670492,105560.0,105550.0,0.71732417]
[1749943832294,0.05617802,105560.0,105550.0,0.71732417]
[1749943832529,0.04670492,105560.0,105550.0,0.71732417]
[1749943834794,0.05617802,105560.0,105550.0,0.71732417]
[1749943835004,0.04670492,105560.0,105550.0,0.71732417]
[1749943835313,0.04670492,105560.0,105550.0,1.16213655]
[1749943835527,0.05617793,105560.0,105550.0,1.16213655]
[1749943836836,0.04670492,105560.0,105550.0,1.16213655]
[1749943837110,0.04670501,105560.0,105550.0,1.25828577]
[1749943838414,0.05617811,105560.0,105550.0,1.25828577]
[1749943838630,0.04670501,105560.0,105550.0,1.25828577]
[1749943839527,0.04670492,105560.0,105550.0,1.25828577]
[1749943839736,0.05617802,105560.0,105550.0,1.25828577]
[1749943840584,0.05617793,105560.0,105550.0,1.25828577]
[1749943841216,0.05617793,105560.0,105550.0,0.81347339]
[1749943841440,0.05617793,105560.0,105550.0,1.22548577]
[1749943841671,0.06565103,105560.0,105550.0,1.22548577]
[1749943842647,0.05617793,105560.0,105550.0,1.22548577]
[1749943842855,0.06565103,105560.0,105550.0,1.25808577]
[1749943844506,0.06565103,105560.0,105550.0,0.81327339]
[1749943844769,0.06565103,105560.0,105550.0,1.16193655]
[1749943847643,0.06565166,105560.0,105550.0,1.16193655]
[1749943847827,0.06565166,105560.0,105550.0,0.68452417]
[1749943850238,0.2551179,105560.0,105550.0,0.65382417]
[1749943850441,0.24564498,105560.0,105550.0,0.63487698]
[1749943850648,0.24564498,105560.0,105550.0,0.6443508]
[1749943851250,0.24564498,105560.0,105550.0,0.65382453]
[1749943851391,0.24564498,105560.0,105550.0,0.65382408]
[1749943857582,0.05617928,105560.0,105550.0,0.65382363]
[1749943858723,0.24564498,105560.0,105550.0,0.64435008]
[1749943858867,0.046706,105560.0,105550.0,0.65382363]
[1749943860172,0.03723245,105560.0,105550.0,0.65382363]
[1749943860374,0.04670555,105560.0,105550.0,0.65382363]
[1749943860580,0.23617125,105560.0,105550.0,0.64435008]
[1749943860728,0.70231089,105560.0,105550.0,0.61564916]
[1749943860931,0.70231089,105560.0,105550.0,0.62512307]
[1749943861814,0.70231089,105560.0,105550.0,0.63459689]
[1749943862448,0.69283788,105560.0,105550.0,0.61564916]
[1749943862653,0.68788614,105560.0,105550.0,0.63459707]
[1749943862863,0.68788614,105560.0,105550.0,0.62512325]
[1749943863067,0.71908614,105560.0,105550.0,0.62512325]
[1749943863476,0.68788614,105560.0,105550.0,0.63459725]
[1749943863903,0.68788614,105560.0,105550.0,0.64407107]
[1749943866352,0.24307376,105560.0,105550.0,0.64407107]
[1749943867530,0.24307376,105560.0,105550.0,0.63459725]
[1749943867768,0.24307376,105560.0,105550.0,0.64407116]
[1749943868003,0.24307376,105560.0,105550.0,0.62504325]
[1749943868252,0.68788614,105560.0,105550.0,0.63451725]
[1749943868488,0.68788614,105560.0,105550.0,0.61556907]
[1749943868737,0.71011304,105560.0,105550.0,0.42608551]
[1749943868971,0.71011304,105560.0,105550.0,0.62504325]
[1749943869192,0.64761304,105560.0,105550.0,0.60609498]
[1749943869422,0.21227376,105560.0,105550.0,0.65604289]
[1749943870143,0.21227376,105560.0,105550.0,0.62504307]
[1749943870370,0.65708614,105560.0,105550.0,0.63451698]
[1749943870598,0.68081304,105560.0,105550.0,0.62504307]
[1749943871313,0.68081304,105560.0,105550.0,0.61556907]
[1749943871893,0.68081304,105560.0,105550.0,0.62504307]
[1749943872804,0.68081304,105560.0,105550.0,0.60609498]
[1749943873029,0.68081304,105560.0,105550.0,0.62504307]
[1749943873243,0.68081304,105560.0,105550.0,0.61556916]
[1749943873466,0.23600066,105560.0,105550.0,0.62504307]
[1749943873916,0.23600066,105560.0,105550.0,0.62504325]
[1749943874355,0.23600066,105560.0,105550.0,0.63451716]
[1749943874576,0.20280066,105560.0,105550.0,0.63451716]
[1749943875292,0.20280066,105560.0,105550.0,0.64399098]
[1749943875531,0.20280066,105560.0,105550.0,0.63451716]
[1749943875776,0.20280066,105560.0,105550.0,0.63439716]
[1749943876051,0.23410066,105560.0,105550.0,0.62492316]
[1749943878037,0.20280066,105560.0,105550.0,0.62492316]
[1749943878265,0.20280066,105560.0,105550.0,0.63439698]
[1749943879230,0.20280066,105560.0,105550.0,0.62492316]
[1749943881771,0.20280066,105560.0,105550.0,0.63439707]
[1749943884574,0.20280066,105560.0,105550.0,0.62492316]
[1749943884815,0.23530066,105560.0,105550.0,0.62492316]
[1749943884936,0.23530066,105560.0,105550.0,0.61544916]
[1749943885146,0.23530066,105560.0,105550.0,0.62492325]
[1749943885954,0.23530066,105560.0,105550.0,0.60585498]
[1749943886160,0.23530066,105560.0,105550.0,0.61532916]
[1749943888138,0.23530066,105560.0,105550.0,0.41637133]
[1749943888807,0.23530066,105560.0,105550.0,0.60585498]
[1749943889060,0.23530066,105560.0,105550.0,0.41637133]
[1749943889299,0.20280066,105560.0,105550.0,0.61532916]
[1749943889710,1.05041304,105560.0,105550.0,0.26281133]
[1749943889919,1.0593026,105560.0,105550.0,0.26281133]
[1749943890259,1.1871643,105560.0,105550.0,0.26281133]
[1749943890561,1.18049672,105560.0,105550.0,0.26281133]
[1749943890808,1.18049655,105560.0,105550.0,0.26181133]
[1749943891080,1.18049654,105560.0,105550.0,0.26181133]
[1749943891341,1.17160654,105560.0,105550.0,0.26181133]
[1749943891638,1.18049654,105560.0,105550.0,0.25981133]
[1749943891861,1.18049655,105560.0,105550.0,0.25981133]
[1749943892114,1.18716405,105560.0,105550.0,0.25981133]
[1749943892354,1.17827355,105560.0,105550.0,0.25981133]
[1749943892640,1.18716292,105560.0,105550.0,0.25981133]
[1749943892883,1.18716297,105560.0,105550.0,0.25981133]
[1749943893114,1.18049593,105560.0,105550.0,0.25981133]
[1749943893347,1.17827358,105560.0,105550.0,0.25981133]
[1749943893594,1.18716297,105560.0,105550.0,0.25981133]
[1749943893841,1.17827367,105560.0,105550.0,0.25981133]
[1749943894084,1.40716318,105560.0,105550.0,0.25981133]
[1749943894334,0.26245765,105550.0,105540.0,0.41359351]
[1749943894577,0.70727003,105550.0,105540.0,0.41359351]
[1749943895100,0.71615997,105550.0,105540.0,0.41375351]
[1749943895343,0.70727003,105550.0,105540.0,0.41375351]
[1749943895588,0.71616,105550.0,105540.0,0.41375351]
[1749943895835,0.71616003,105550.0,105540.0,0.41575351]
[1749943896078,0.70727003,105550.0,105540.0,0.41575351]
[1749943896573,0.71616002,105550.0,105540.0,0.41575351]
[1749943896838,0.71616003,105550.0,105540.0,0.41575351]
[1749943897056,0.70727003,105550.0,105540.0,0.41675351]
[1749943897302,0.71616003,105550.0,105540.0,0.41675351]
[1749943897563,0.71616002,105550.0,105540.0,0.41675351]
[1749943897818,0.71616424,105550.0,105540.0,0.41675351]
[1749943898363,0.71616426,105550.0,105540.0,0.41675351]
[1749943898586,0.70727003,105550.0,105540.0,0.41675351]
[1749943898830,0.68566415,105550.0,105540.0,0.41675351]
[1749943899076,0.68566407,105550.0,105540.0,0.41675351]
[1749943899321,0.68566408,105550.0,105540.0,0.41675351]
[1749943899567,0.67677003,105550.0,105540.0,0.41675351]
[1749943899905,0.67677003,105550.0,105540.0,0.26295351]
[1749943900166,0.67677003,105550.0,105540.0,0.41671351]
[1749943903432,0.70787003,105550.0,105540.0,0.41667351]
[1749943904385,0.70787003,105550.0,105540.0,0.41567351]
[1749943904605,0.67677003,105550.0,105540.0,0.41567351]
[1749943905080,0.67677003,105550.0,105540.0,0.41367351]
[1749943911564,0.68566424,105550.0,105540.0,0.41367351]
[1749943911771,0.69233489,105550.0,105540.0,0.41367351]
[1749943912170,0.69233491,105550.0,105540.0,0.41367351]
[1749943912373,0.68566234,105550.0,105540.0,0.41367351]
[1749943912762,0.68566233,105550.0,105540.0,0.41367351]
[1749943913009,0.65266233,105550.0,105540.0,0.41367351]
[1749943913284,0.22679774,105550.0,105540.0,1.18349538]
[1749943913504,0.21790574,105550.0,105540.0,1.13263739]
[1749943915196,0.21790574,105550.0,105540.0,1.12316249]
[1749943915431,0.21790574,105550.0,105540.0,1.1421122]
[1749943915654,0.21790574,105550.0,105540.0,1.13263739]
[1749943916521,0.20843183,105550.0,105540.0,1.13263739]
[1749943921126,0.77441744,105560.0,105550.0,0.20843174]
[1749943921346,0.03278829,105560.0,105550.0,0.7366914]
[1749943921568,0.02389731,105560.0,105550.0,0.7366914]
[1749943921785,0.02841867,105560.0,105550.0,0.7366914]
[1749943922214,0.22735756,105560.0,105550.0,0.89037149]
[1749943922431,0.03789186,105560.0,105550.0,0.89984504]
[1749943923118,0.03989186,105560.0,105550.0,0.89984504]
[1749943923528,0.03789186,105560.0,105550.0,0.89984504]
[1749943924570,0.03789186,105560.0,105550.0,0.87142412]
[1749943924794,0.03789186,105560.0,105550.0,0.88089794]
[1749943925012,0.03789186,105560.0,105550.0,0.87142412]
[1749943925225,0.21788491,105560.0,105550.0,0.87142412]
[1749943925440,0.21788491,105560.0,105550.0,0.8714243]
[1749943926297,0.20841199,105560.0,105550.0,0.8714243]
[1749943926728,0.20841199,105560.0,105550.0,1.13123563]
[1749943927415,0.19893889,105560.0,105550.0,0.93227789]
[1749943927805,0.19893889,105560.0,105550.0,0.48746551]
[1749943928730,0.19893889,105560.0,105550.0,0.67694916]
[1749943929845,0.19893889,105560.0,105550.0,0.32431133]
[1749943930060,0.19893889,105560.0,105550.0,0.44621133]
[1749943931798,0.64375127,105560.0,105550.0,0.44621133]
[1749943932024,0.65264431,105560.0,105550.0,0.41345133]
[1749943932213,0.65264435,105560.0,105550.0,0.41345133]
[1749943932658,0.64375127,105560.0,105550.0,0.41345133]
[1749943934167,0.64375127,105560.0,105550.0,0.44665133]
[1749943934379,0.19893889,105560.0,105550.0,0.44665133]
[1749943935493,0.19893889,105560.0,105550.0,0.45612551]
[1749943935704,0.19893889,105560.0,105550.0,0.48632551]
[1749943936648,0.19893889,105560.0,105550.0,0.47685133]
[1749943939509,0.19893889,105560.0,105550.0,0.48632551]
[1749943940406,0.19893889,105560.0,105550.0,0.68528316]
[1749943941789,0.19893889,105560.0,105550.0,1.13009554]
[1749943942912,0.19893889,105560.0,105550.0,0.68528316]
[1749943943493,0.19893889,105560.0,105550.0,0.69475707]
[1749943943745,0.19893889,105560.0,105550.0,1.13956945]
[1749943946150,0.19893889,105560.0,105550.0,0.69475707]
[1749943947413,0.19893889,105560.0,105550.0,0.66455707]
[1749943949540,0.19893889,105560.0,105550.0,0.44665133]
[1749943949748,0.19893889,105560.0,105550.0,0.64560907]
[1749943950806,0.19893889,105560.0,105550.0,0.65508307]
[1749943951227,0.19893889,105560.0,105550.0,0.41345133]
[1749943951468,0.19893889,105560.0,105550.0,0.61240907]
[1749943951683,0.19893889,105560.0,105550.0,0.62188307]
[1749943952536,1.04855127,105560.0,105550.0,0.25981133]
[1749943952756,1.05744173,105560.0,105550.0,0.41329133]
[1749943952962,1.04855127,105560.0,105550.0,0.41329133]
[1749943953174,1.06411003,105560.0,105550.0,0.25981133]
[1749943953386,1.06411026,105560.0,105550.0,0.41329133]
[1749943953590,1.06411016,105560.0,105550.0,0.41329133]
[1749943953809,1.05744208,105560.0,105550.0,0.41329133]
[1749943954026,1.06411021,105560.0,105550.0,0.25981133]
[1749943954235,1.06411021,105560.0,105550.0,0.41333133]
[1749943954236,1.15146111,105560.0,105550.0,0.41333133]
[1749943954452,1.18878627,105560.0,105550.0,0.41333133]
[1749943954667,0.84375765,105550.0,105540.0,0.00014218]
[1749943954877,1.42881844,105550.0,105540.0,0.00014218]
[1749943955127,1.42214982,105550.0,105540.0,0.00014218]
[1749943955377,1.41992704,105550.0,105540.0,0.00014218]
[1749943955594,1.41325796,105550.0,105540.0,0.00014218]
[1749943955805,1.42881901,105550.0,105540.0,0.00014218]
[1749943956019,1.42881894,105550.0,105540.0,0.00014218]
[1749943956223,1.39148077,105550.0,105540.0,0.00014218]
[1749943956666,1.41992694,105550.0,105540.0,0.00014218]
[1749943957101,1.39370377,105550.0,105540.0,0.00014218]
[1749943957307,1.34447584,105550.0,105540.0,0.00014218]
[1749943957512,1.35114485,105550.0,105540.0,0.00014218]
[1749943957719,1.35114484,105550.0,105540.0,0.00014218]
[1749943957891,1.35114485,105550.0,105540.0,0.00014218]
[1749943958166,1.33558385,105550.0,105540.0,0.00014218]
[1749943958369,1.37094684,105550.0,105540.0,0.00014218]
[1749943958578,1.37983885,105550.0,105540.0,0.00014218]
[1749943958782,1.37094684,105550.0,105540.0,0.00014218]
[1749943959010,1.37983885,105550.0,105540.0,0.00014218]
[1749943959240,1.37316983,105550.0,105540.0,0.00014218]
[1749943959446,1.37983884,105550.0,105540.0,0.00014218]
[1749943959653,1.37094684,105550.0,105540.0,0.00014218]
[1749943959856,1.37983889,105550.0,105540.0,0.00014218]
[1749943960277,1.37983891,105550.0,105540.0,0.00014218]
[1749943960488,1.37316988,105550.0,105540.0,0.00014218]
[1749943960708,1.36427784,105550.0,105540.0,0.00014218]
[1749943961124,0.94425437,105550.0,105540.0,0.00014218]
[1749943961332,0.93758538,105550.0,105540.0,0.00014218]
[1749943961538,0.93536231,105550.0,105540.0,0.00014218]
[1749943961787,0.94425416,105550.0,105540.0,0.00014218]
[1749943962003,0.94425396,105550.0,105540.0,0.00014218]
[1749943962182,0.93758502,105550.0,105540.0,0.00014218]
[1749943962389,0.9375849,105550.0,105540.0,0.00014218]
[1749943962597,0.90306202,105550.0,105540.0,0.00014218]
[1749943962834,0.8602384,105550.0,105540.0,0.23231878]
[1749943963077,0.86023813,105550.0,105540.0,0.06504218]
[1749943963295,0.85076433,105550.0,105540.0,0.00014218]
[1749943963509,0.84409379,105550.0,105540.0,0.00014218]
[1749943963733,0.8418702,105550.0,105540.0,0.00014218]
[1749943963875,0.85076459,105550.0,105540.0,0.00014218]
[1749943964264,0.84409381,105550.0,105540.0,0.00014218]
[1749943964472,1.3021549,105550.0,105540.0,0.00014218]
[1749943964684,1.31104963,105550.0,105540.0,0.00014218]
[1749943964890,1.31104973,105550.0,105540.0,0.00014218]
[1749943965099,1.30215493,105550.0,105540.0,0.00014218]
[1749943965285,1.31104982,105550.0,105540.0,0.25995351]
[1749943965500,1.3110498,105550.0,105540.0,0.00014218]
[1749943965697,1.29548385,105550.0,105540.0,0.00014218]
[1749943965899,1.30437873,105550.0,105540.0,0.00014218]
[1749943966100,1.31104916,105550.0,105540.0,0.00014218]
[1749943966312,1.30215467,105550.0,105540.0,0.00014218]
[1749943966518,1.30437879,105550.0,105540.0,0.00014218]
[1749943966726,1.3110491,105550.0,105540.0,0.00014218]
[1749943966953,1.29548385,105550.0,105540.0,0.00014218]
[1749943967164,1.31104998,105550.0,105540.0,0.00014218]
[1749943967380,1.32392086,105550.0,105540.0,0.00014218]
[1749943968024,1.47764086,105550.0,105540.0,0.00014218]
[1749943971143,1.47764086,105550.0,105540.0,0.25995351]
[1749943973699,1.33277449,105550.0,105540.0,0.25995351]
[1749943973885,1.33277412,105550.0,105540.0,0.25995351]
[1749943974102,1.32392086,105550.0,105540.0,0.25995351]
[1749943974278,1.35228316,105550.0,105540.0,0.25995351]
[1749943980692,1.35894519,105550.0,105540.0,0.25995351]
[1749943980950,1.35894518,105550.0,105540.0,0.25995351]
[1749943981154,1.35894519,105550.0,105540.0,0.25995351]
[1749943981361,1.40842724,105550.0,105540.0,0.25995351]
[1749943981531,1.61497407,105550.0,105540.0,0.25995351]
[1749943981739,1.56206723,105550.0,105540.0,0.25995351]
[1749943981950,1.56206758,105550.0,105540.0,0.25995351]
[1749943982216,1.56206727,105550.0,105540.0,0.25995351]
[1749943982353,1.56206759,105550.0,105540.0,0.25995351]
[1749943982733,1.56206727,105550.0,105540.0,0.25995351]
[1749943983149,1.56206706,105550.0,105540.0,0.25995351]
[1749943983359,1.59322197,105550.0,105540.0,0.25995351]
[1749943984264,1.59988362,105550.0,105540.0,0.25995351]
[1749943984737,1.59322197,105550.0,105540.0,0.25995351]
[1749943985167,1.59988329,105550.0,105540.0,0.25995351]
[1749943985599,1.59988328,105550.0,105540.0,0.25995351]
[1749943985836,1.59322197,105550.0,105540.0,0.25995351]
[1749943987140,1.5998833,105550.0,105540.0,0.25995351]
[1749943987349,1.59988367,105550.0,105540.0,0.25995351]
[1749943987556,1.59988366,105550.0,105540.0,0.25995351]
[1749943987765,1.59322197,105550.0,105540.0,0.25995351]
[1749943987970,1.5998836,105550.0,105540.0,0.25995351]
[1749943988186,1.59322197,105550.0,105540.0,0.25995351]
[1749943988423,1.59988359,105550.0,105540.0,0.25995351]
[1749943988628,1.59988361,105550.0,105540.0,0.25995351]
[1749943988807,1.59988323,105550.0,105540.0,0.25995351]
[1749943989237,1.59988359,105550.0,105540.0,0.25995351]
[1749943989523,1.59988318,105550.0,105540.0,0.25995351]
[1749943989760,1.59988315,105550.0,105540.0,0.25995351]
[1749943989951,1.59988304,105550.0,105540.0,0.25995351]
[1749943990390,1.59322197,105550.0,105540.0,0.25995351]
[1749943990614,1.59988282,105550.0,105540.0,0.25995351]
[1749943990862,1.5998827,105550.0,105540.0,0.25995351]
[1749943991068,1.56172197,105550.0,105540.0,0.25995351]
[1749943991270,1.56838274,105550.0,105540.0,0.25995351]
[1749943991559,1.56838301,105550.0,105540.0,0.25995351]
[1749943991758,1.56838272,105550.0,105540.0,0.25995351]
[1749943992171,1.56838276,105550.0,105540.0,0.25995351]
[1749943992393,1.5683827,105550.0,105540.0,0.25995351]
[1749943992608,1.56838266,105550.0,105540.0,0.25995351]
[1749943992811,1.56172197,105550.0,105540.0,0.25995351]
[1749943993236,1.56838299,105550.0,105540.0,0.25995351]
[1749943993454,1.56838302,105550.0,105540.0,0.25995351]
[1749943994100,1.56172197,105550.0,105540.0,0.25995351]
[1749943994309,1.56179914,105550.0,105540.0,0.25995351]